bitfinex-derivatives/quotes_BTCF0:USTF0_20251125
["timestamp","ask_amount","ask_price","bid_price","bid_amount"]
[1764102867697,0.3608,87222.0,87219.0,0.03853]
[1764102867698,0.130141,87218.0,87217.0,0.05967]
[1764102867897,0.130141,87218.0,87217.0,0.11674]
[1764102871104,0.11867,87216.0,87215.0,0.00017196]
[1764102874493,0.11867,87216.0,87215.0,0.11691196]
[1764102875001,0.0114711,87216.0,87215.0,0.00017196]
[1764102875308,0.3608,87217.0,87216.0,0.11674]
[1764102875496,0.3608,87232.0,87216.0,0.11674]
[1764102875497,0.490939,87232.0,87231.0,0.11674]
[1764102875893,0.490939,87232.0,87231.0,0.06674]
[1764102876204,0.372269,87232.0,87231.0,0.06674]
[1764102876407,0.011469,87232.0,87231.0,0.06674]
[1764102877505,0.00017196,87237.0,87231.0,0.06674]
[1764102877506,0.01164036,87237.0,87236.0,0.11674]
[1764102877701,0.00017196,87237.0,87236.0,0.11674]
[1764102878104,0.3608,87251.0,87250.0,0.1551]
[1764102878702,0.3722665,87251.0,87250.0,0.1551]
[1764102878906,0.4314565,87251.0,87250.0,0.11674]
[1764102879995,0.4909365,87251.0,87250.0,0.11674]
[1764102881601,0.1396076,87243.0,87242.0,0.48752196]
[1764102883411,0.1396076,87243.0,87242.0,0.42292196]
[1764102886907,0.1396076,87243.0,87242.0,0.06212196]
[1764102887114,0.1396076,87243.0,87242.0,0.12672196]
[1764102887607,0.1396076,87243.0,87242.0,0.00017196]
[1764102887809,0.5004076,87243.0,87242.0,0.00017196]
[1764102889112,0.5004076,87243.0,87242.0,0.06212196]
[1764102890114,0.5004076,87243.0,87242.0,0.00017196]
[1764102893713,0.1731701,87224.0,87223.0,0.12655]
[1764102894014,0.5339701,87224.0,87223.0,0.12655]
[1764102894414,0.1396113,87215.0,87214.0,0.30775]
[1764102895009,0.13978216,87223.0,87222.0,0.12655]
[1764102895414,0.13978216,87223.0,87222.0,0.0646]
[1764102895415,0.07547216,87223.0,87222.0,0.0646]
[1764102895723,0.008472,87209.0,87208.0,0.13946]
[1764102897316,0.008472,87209.0,87208.0,0.23346076]
[1764102897513,0.136612,87209.0,87208.0,0.22055076]
[1764102897821,0.136612,87209.0,87208.0,0.12655]
[1764102898526,0.01164216,87223.0,87222.0,0.12655]
[1764102900424,0.00017196,87223.0,87222.0,0.48735]
[1764102900817,0.0114689,87233.0,87232.0,0.11043]
[1764102901820,0.0114686,87236.0,87235.0,0.11043]
[1764102902020,0.3722682,87239.0,87238.0,0.11043]
[1764102902427,0.4265682,87239.0,87238.0,0.11043]
[1764102903524,0.0657682,87239.0,87238.0,0.11043]
[1764102903929,0.00017196,87241.0,87240.0,0.11043]
[1764102904435,0.01163976,87241.0,87240.0,0.11043]
[1764102905137,0.1217588,87234.0,87233.0,0.47123]
[1764102905523,0.0114688,87234.0,87233.0,0.47123]
[1764102907234,0.1217588,87234.0,87233.0,0.47123]
[1764102908845,0.1217588,87234.0,87233.0,0.56195703]
[1764102909026,0.0114688,87234.0,87233.0,0.56195703]
[1764102909225,0.01163976,87241.0,87240.0,0.14108]
[1764102909837,0.06593976,87241.0,87240.0,0.14108]
[1764102910537,0.06693976,87241.0,87240.0,0.14108]
[1764102910927,0.01263976,87241.0,87240.0,0.14108]
[1764102911129,0.00117196,87241.0,87240.0,0.14108]
[1764102913044,0.00117196,87241.0,87240.0,0.50188]
[1764102913243,0.00017196,87241.0,87240.0,0.50188]
[1764102914235,0.00017196,87241.0,87240.0,0.50288]
[1764102915144,0.00017196,87241.0,87240.0,0.514348]
[1764102915639,0.3608,87251.0,87240.0,0.513348]
[1764102915940,0.0114667,87250.0,87249.0,0.3608]
[1764102916139,0.1230867,87250.0,87249.0,0.4185]
[1764102916642,0.1230867,87250.0,87249.0,0.47373]
[1764102917738,0.0114676,87243.0,87241.0,0.00017196]
[1764102918044,0.1230876,87243.0,87242.0,0.0577]
[1764102919143,0.11162,87242.0,87241.0,0.00017196]
[1764102920247,0.11262,87242.0,87241.0,0.00017196]
[1764102922039,0.11262,87242.0,87241.0,0.05787196]
[1764102922744,0.11262,87242.0,87241.0,0.11310196]
[1764102923449,0.001,87242.0,87241.0,0.11310196]
[1764102923856,0.11262,87242.0,87241.0,0.11310196]
[1764102924742,0.11162,87242.0,87241.0,0.11310196]
[1764102924944,0.11262,87242.0,87241.0,0.11310196]
[1764102925249,0.11162,87242.0,87241.0,0.11310196]
[1764102925449,0.11262,87242.0,87241.0,0.11310196]
[1764102926551,0.11262,87242.0,87241.0,0.00017196]
[1764102926842,0.11262,87242.0,87241.0,0.05787196]
[1764102927048,0.11262,87242.0,87241.0,0.11310196]
[1764102927245,0.001,87242.0,87241.0,0.12456976]
[1764102927441,0.001,87242.0,87241.0,0.25431806]
[1764102927945,0.0114677,87243.0,87241.0,0.25431806]
[1764102928147,0.0114677,87243.0,87242.0,0.11293]
[1764102929249,0.4838863,87253.0,87252.0,0.11293]
[1764102930241,0.0114663,87253.0,87252.0,0.11293]
[1764102930446,0.0114664,87252.0,87251.0,0.11293]
[1764102930948,0.0114661,87255.0,87254.0,0.11293]
[1764102931139,0.1230861,87255.0,87254.0,0.11293]
[1764102932647,0.1230861,87255.0,87254.0,0.4851961]
[1764102932648,0.001,87255.0,87254.0,0.4851961]
[1764102932847,0.3608,87271.0,87257.0,0.1243957]
[1764102933052,0.1230832,87276.0,87275.0,0.11293]
[1764102934555,0.1240832,87276.0,87275.0,0.11293]
[1764102935356,0.1240832,87276.0,87275.0,0.07564148]
[1764102935952,0.1240832,87276.0,87275.0,0.13087148]
[1764102936250,0.001,87276.0,87275.0,0.13087148]
[1764102937153,0.41495,87280.0,87279.0,0.11293]
[1764102937549,0.47242,87280.0,87279.0,0.11293]
[1764102938456,0.47342,87280.0,87279.0,0.11293]
[1764102938659,0.11262,87280.0,87279.0,0.11293]
[1764102939059,0.1230832,87276.0,87275.0,0.07564148]
[1764102939255,0.1230832,87276.0,87275.0,0.01794148]
[1764102939558,0.1230843,87268.0,87267.0,0.00017196]
[1764102940457,0.1230843,87268.0,87267.0,0.07626135]
[1764102940658,0.1230843,87268.0,87267.0,0.11310196]
[1764102941456,0.0656143,87268.0,87267.0,0.13119908]
[1764102941861,0.1171443,87268.0,87267.0,0.13119908]
[1764102942258,0.1142127,87280.0,87279.0,0.10208]
[1764102943654,0.0626843,87268.0,87267.0,0.12034908]
[1764102944053,0.1142143,87268.0,87267.0,0.01826908]
[1764102944851,0.1142143,87268.0,87267.0,0.12034908]
[1764102945558,0.0114643,87268.0,87267.0,0.12034908]
[1764102945960,0.0626843,87268.0,87267.0,0.12034908]
[1764102946665,0.0114643,87268.0,87267.0,0.12034908]
[1764102947260,0.3608,87274.0,87273.0,0.10208]
[1764102947464,0.1142127,87280.0,87279.0,0.10208]
[1764102947860,0.0626827,87280.0,87279.0,0.10208]
[1764102948060,0.1142127,87280.0,87279.0,0.10208]
[1764102948566,0.0626843,87268.0,87267.0,0.12034908]
[1764102948762,0.0114643,87268.0,87267.0,0.12034908]
[1764102952162,0.1142143,87268.0,87267.0,0.12034908]
[1764102952362,0.1142143,87268.0,87267.0,0.06866908]
[1764102952961,0.3608,87273.0,87272.0,0.13092]
[1764102953165,0.4750123,87283.0,87282.0,0.10208]
[1764102953361,0.0626836,87273.0,87272.0,0.10208]
[1764102953965,0.05122,87273.0,87272.0,0.10208]
[1764102954369,0.114213,87278.0,87277.0,0.10208]
[1764102956167,0.062683,87278.0,87277.0,0.10208]
[1764102956567,0.011463,87278.0,87277.0,0.10208]
[1764102956764,0.0626828,87280.0,87279.0,0.10208]
[1764102957371,0.1142128,87280.0,87279.0,0.10208]
[1764102958870,0.1142143,87268.0,87267.0,0.62361193]
[1764102959369,0.1142143,87268.0,87267.0,0.48114908]
[1764102959869,0.1142143,87268.0,87267.0,0.12034908]
[1764102960265,0.0114639,87272.0,87267.0,0.01826908]
[1764102960466,0.0114631,87277.0,87276.0,0.09143]
[1764102962273,0.0583731,87277.0,87276.0,0.09143]
[1764102962476,0.1043531,87277.0,87276.0,0.09143]
[1764102963083,0.1315138,87272.0,87271.0,0.14246285]
[1764102963272,0.4923138,87272.0,87271.0,0.14246285]
[1764102963470,0.1043543,87268.0,87267.0,0.01826908]
[1764102965779,0.1043543,87268.0,87267.0,0.10969908]
[1764102965780,0.04598,87268.0,87267.0,0.10969908]
[1764102965979,0.0114642,87269.0,87268.0,0.09143]
[1764102966283,0.1043542,87269.0,87268.0,0.09143]
[1764102967386,0.09289,87268.0,87267.0,0.01826908]
[1764102967878,0.09289,87268.0,87267.0,0.06507908]
[1764102969086,0.09289,87268.0,87267.0,0.01826908]
[1764102971273,0.09289,87268.0,87260.0,0.50326285]
[1764102971274,0.0991652,87261.0,87260.0,0.14246285]
[1764102971471,0.0991652,87261.0,87253.0,0.14246285]
[1764102971472,0.0991661,87254.0,87253.0,0.14246285]
[1764102971676,0.4599661,87254.0,87253.0,5e-08]
[1764102971879,0.0114676,87243.0,87242.0,5e-08]
[1764102972072,0.0114676,87243.0,87242.0,0.01821841]
[1764102972275,0.1240584,87237.0,87236.0,0.0001358]
[1764102972476,0.4848584,87237.0,87236.0,0.0001358]
[1764102973183,0.0991694,87229.0,87228.0,0.00017186]
[1764102973483,0.4599694,87229.0,87228.0,0.01778232]
[1764102973685,0.4599694,87229.0,87218.0,0.18104]
[1764102973686,0.1160907,87219.0,87218.0,0.18104]
[1764102973882,0.0877,87218.0,87217.0,0.3608]
[1764102974076,0.0547503,87223.0,87222.0,0.09058]
[1764102974284,0.05486006,87223.0,87222.0,0.09058]
[1764102974584,0.00010976,87223.0,87222.0,0.1020503]
[1764102976184,0.01157996,87223.0,87222.0,0.09058]
[1764102976385,0.05485996,87223.0,87222.0,0.09058]
[1764102976687,0.01157996,87223.0,87222.0,0.09058]
[1764102977186,0.00010976,87223.0,87222.0,0.09058]
[1764102979787,0.04338976,87223.0,87222.0,0.09058]
[1764102979984,0.08780976,87223.0,87222.0,0.09058]
[1764102980883,0.08780976,87223.0,87222.0,0.04408]
[1764102981092,0.08780976,87223.0,87222.0,0.09058]
[1764102982791,0.00010976,87223.0,87222.0,0.1020503]
[1764102984989,0.00010976,87223.0,87222.0,0.09058]
[1764102985394,0.00010976,87223.0,87218.0,0.01783053]
[1764102985395,0.1240607,87219.0,87218.0,0.01783053]
[1764102985590,0.0877,87217.0,87208.0,0.18108]
[1764102985786,0.0877,87217.0,87216.0,0.54353748]
[1764102986499,0.0114705,87221.0,87220.0,0.09058]
[1764102986795,0.0991705,87221.0,87220.0,0.09058]
[1764102987699,0.0991705,87221.0,87216.0,0.49703748]
[1764102987700,0.099171,87217.0,87216.0,0.49703748]
[1764102988000,0.099171,87217.0,87216.0,0.54353748]
[1764102988393,0.099171,87217.0,87216.0,0.56025046]
[1764102988591,0.099171,87217.0,87216.0,0.19945046]
[1764102989897,0.08780976,87223.0,87222.0,0.09058]
[1764102990083,0.09927996,87223.0,87222.0,0.09058]
[1764102990484,0.00010976,87223.0,87222.0,0.09058]
[1764102990687,0.00010976,87223.0,87222.0,0.45138]
[1764102991887,0.00010976,87223.0,87216.0,0.12034156]
[1764102991888,0.0877,87217.0,87216.0,0.01671298]
[1764102992095,0.0877,87215.0,87185.0,0.3608]
[1764102992392,0.0867,87215.0,87188.0,0.18112]
[1764102992590,0.011474,87195.0,87194.0,0.09058]
[1764102992998,0.053754,87195.0,87194.0,0.10766271]
[1764102994894,0.00017196,87203.0,87202.0,0.09058]
[1764102995099,0.00017196,87203.0,87202.0,0.45138]
[1764102996192,0.00017196,87203.0,87202.0,0.45238]
[1764102999797,0.00017196,87203.0,87202.0,0.63358]
[1764103000899,0.08787196,87203.0,87202.0,0.63358]
[1764103001099,0.08787196,87203.0,87202.0,0.001]
[1764103001487,0.44867196,87203.0,87202.0,0.001]
[1764103002693,0.08656,87195.0,87194.0,0.01708271]
[1764103003000,0.08656,87195.0,87193.0,8.812e-05]
[1764103003001,0.08491,87194.0,87193.0,0.04338812]
[1764103003995,0.08491,87194.0,87193.0,0.08658812]
[1764103004397,0.08491,87194.0,87193.0,0.10352559]
[1764103006104,0.08491,87194.0,87193.0,0.01702559]
[1764103006398,0.44571,87194.0,87193.0,0.01702559]
[1764103006599,0.0963849,87187.0,87186.0,0.00017196]
[1764103006900,0.4571849,87187.0,87186.0,0.00017196]
[1764103007995,0.45730816,87187.0,87186.0,0.00017196]
[1764103008209,0.45730816,87187.0,87186.0,1.96e-06]
[1764103008397,0.45830816,87187.0,87186.0,1.96e-06]
[1764103010597,0.0963878,87165.0,87164.0,0.4473]
[1764103010900,0.0963878,87165.0,87164.0,0.53742877]
[1764103011400,0.0114778,87165.0,87164.0,0.53742877]
[1764103011592,0.0531078,87165.0,87164.0,0.55451584]
[1764103011999,0.0114778,87165.0,87164.0,0.55551584]
[1764103012505,0.04163,87172.0,87165.0,0.02404]
[1764103012709,0.0531069,87172.0,87171.0,0.0865]
[1764103013101,0.0114769,87172.0,87171.0,0.0865]
[1764103014005,0.0963869,87172.0,87171.0,0.0865]
[1764103014802,0.0963869,87172.0,87171.0,0.0875]
[1764103015004,0.0963869,87172.0,87171.0,0.001]
[1764103015397,0.1237078,87165.0,87164.0,0.01708707]
[1764103015699,0.07830651,87166.0,87155.0,0.08660466]
[1764103015902,0.07830651,87166.0,87165.0,0.0865]
[1764103015903,0.16321651,87166.0,87165.0,0.0865]
[1764103016308,0.17469421,87166.0,87165.0,0.0865]
[1764103018112,0.17469421,87166.0,87158.0,0.4473]
[1764103018113,0.0963886,87159.0,87158.0,0.4473]
[1764103018902,0.0531086,87159.0,87158.0,0.4473]
[1764103019102,0.0963886,87159.0,87158.0,0.4473]
[1764103019909,0.0963886,87159.0,87158.0,0.3608]
[1764103020407,0.0963886,87159.0,87158.0,0.41516]
[1764103020602,0.0963886,87159.0,87158.0,0.11038]
[1764103020797,0.0963886,87159.0,87158.0,0.001]
[1764103020999,0.150739,87156.0,87155.0,0.00010466]
[1764103021714,0.0135737,87159.0,87158.0,0.10938]
[1764103021902,0.0020951,87159.0,87158.0,0.10938]
[1764103022298,9.51e-05,87159.0,87158.0,0.10938]
[1764103023811,0.0020951,87159.0,87158.0,0.10938]
[1764103024398,0.0010951,87159.0,87158.0,0.10938]
[1764103024599,0.1086751,87159.0,87158.0,0.10938]
[1764103025508,0.0020951,87159.0,87158.0,0.4816588]
[1764103025708,0.00017206,87173.0,87172.0,0.10938]
[1764103025914,0.00017206,87173.0,87172.0,0.47018]
[1764103026118,0.01164886,87173.0,87172.0,0.47018]
[1764103026606,0.01177768,87173.0,87172.0,0.47018]
[1764103027305,0.06525768,87173.0,87172.0,0.47018]
[1764103027808,0.06725768,87173.0,87172.0,0.47018]
[1764103028009,0.00230088,87173.0,87172.0,0.47018]
[1764103028407,0.05578088,87173.0,87172.0,0.47018]
[1764103028714,0.00230088,87173.0,87172.0,0.4816569]
[1764103029215,0.00230088,87173.0,87172.0,0.8424569]
[1764103029804,0.0114738,87196.0,87192.0,0.03121]
[1764103030117,0.0114741,87193.0,87192.0,0.50139]
[1764103031714,0.0124741,87193.0,87192.0,0.50139]
[1764103033215,0.0124741,87193.0,87192.0,0.59458217]
[1764103033608,0.0114741,87193.0,87192.0,0.59458217]
[1764103035417,0.06866516,87201.0,87200.0,0.10952]
[1764103036321,0.01164516,87201.0,87200.0,0.10952]
[1764103036517,0.12395516,87201.0,87200.0,0.10952]
[1764103037920,0.15711516,87201.0,87192.0,0.48520217]
[1764103038116,0.1237841,87193.0,87192.0,0.45399217]
[1764103038817,0.1237841,87193.0,87192.0,0.09319217]
[1764103039019,0.1237852,87185.0,87184.0,0.10969206]
[1764103039813,0.1237852,87185.0,87184.0,0.05495206]
[1764103040821,0.1237852,87185.0,87184.0,0.14865751]
[1764103041024,0.1237852,87185.0,87184.0,0.05495206]
[1764103041527,0.1237852,87185.0,87184.0,0.10969206]
[1764103042324,0.1237852,87185.0,87184.0,0.20100234]
[1764103048036,0.0684952,87185.0,87184.0,0.20100234]
[1764103048330,0.1237852,87185.0,87184.0,0.20100234]
[1764103052525,0.0114752,87185.0,87184.0,0.20100234]
[1764103055727,0.0114752,87185.0,87184.0,0.09148234]
[1764103055933,0.0114752,87185.0,87184.0,0.20100234]
[1764103056129,0.0114742,87193.0,87192.0,0.13553]
[1764103056329,0.1237842,87193.0,87192.0,0.10952]
[1764103056637,0.1237852,87185.0,87184.0,0.20100234]
[1764103057038,0.1237852,87185.0,87184.0,0.20200234]
[1764103057630,0.1237852,87185.0,87184.0,0.09148234]
[1764103057940,0.1237852,87185.0,87184.0,4e-08]
[1764103058135,0.0114773,87169.0,87168.0,0.81952397]
[1764103058439,0.0684973,87169.0,87168.0,0.67757]
[1764103058824,0.1237873,87169.0,87168.0,0.67757]
[1764103059134,0.1237873,87169.0,87168.0,0.05478]
[1764103059336,0.1237873,87169.0,87161.0,0.3608]
[1764103059337,0.1237882,87162.0,87161.0,0.47032]
[1764103060333,0.1237882,87162.0,87161.0,0.41558]
[1764103061838,0.1237882,87162.0,87161.0,0.47032]
[1764103062042,0.1237882,87162.0,87161.0,0.56162683]
[1764103062427,0.1237882,87162.0,87161.0,0.3608]
[1764103062639,0.115109,87156.0,87154.0,0.3608]
[1764103062840,0.115109,87156.0,87145.0,0.3608]
[1764103063030,0.115109,87156.0,87155.0,0.06927883]
[1764103063031,0.143689,87156.0,87155.0,0.06927883]
[1764103064339,0.143689,87156.0,87155.0,0.15936166]
[1764103064538,0.143689,87156.0,87155.0,0.06927883]
[1764103064734,0.143689,87156.0,87155.0,0.12443883]
[1764103064929,0.115109,87156.0,87155.0,0.12443883]
[1764103067940,0.011479,87156.0,87155.0,0.21476969]
[1764103069431,0.064989,87156.0,87155.0,0.21476969]
[1764103070333,0.1151111,87140.0,87115.0,0.3608]
[1764103070551,0.0114824,87130.0,87129.0,0.46834]
[1764103070743,0.1151124,87130.0,87129.0,0.46834]
[1764103070933,0.0114824,87130.0,87129.0,0.46834]
[1764103071343,0.11521706,87130.0,87129.0,0.56051603]
[1764103072232,0.11521706,87130.0,87129.0,0.56151603]
[1764103072437,0.11521706,87130.0,87129.0,0.50635603]
[1764103072839,0.01158706,87130.0,87129.0,0.57980603]
[1764103073040,0.01158706,87130.0,87129.0,0.56151603]
[1764103073439,0.11521706,87130.0,87129.0,0.56151603]
[1764103073838,0.11521706,87130.0,87129.0,0.50635603]
[1764103075348,0.11521706,87130.0,87129.0,0.14555603]
[1764103076042,0.11521706,87130.0,87129.0,0.09317603]
[1764103076548,0.11521706,87130.0,87129.0,0.001]
[1764103077150,0.11521706,87130.0,87129.0,0.10854]
[1764103077348,0.11521706,87130.0,87129.0,0.001]
[1764103081649,0.01158706,87130.0,87129.0,0.46615]
[1764103082345,0.00010466,87130.0,87129.0,0.46615]
[1764103082941,0.05062466,87130.0,87129.0,0.46615]
[1764103083448,0.10005466,87130.0,87129.0,0.46615]
[1764103085553,0.00010466,87130.0,87129.0,0.46615]
[1764103085752,0.05062466,87130.0,87129.0,0.46615]
[1764103086257,0.10005466,87130.0,87129.0,0.46615]
[1764103087552,0.10005466,87130.0,87129.0,0.3618]
[1764103087759,0.10005466,87130.0,87129.0,0.001]
[1764103088656,0.09995,87125.0,87124.0,0.01749615]
[1764103088849,0.03178,87128.0,87122.0,0.3608]
[1764103088850,0.09995,87123.0,87122.0,0.3608]
[1764103089354,0.05052,87123.0,87122.0,0.48229545]
[1764103089652,0.09995,87123.0,87122.0,0.48229545]
[1764103089954,0.09995,87123.0,87122.0,0.43032545]
[1764103090654,0.09995,87123.0,87122.0,0.48229545]
[1764103090851,0.1114331,87125.0,87124.0,0.10426]
[1764103091652,0.0114831,87125.0,87124.0,0.46506]
[1764103092357,0.00010466,87130.0,87129.0,0.10538]
[1764103093552,0.10825466,87130.0,87129.0,0.10538]
[1764103100552,0.00010466,87130.0,87129.0,0.20716305]
[1764103100752,4.66e-06,87130.0,87129.0,0.10538]
[1764103102557,0.48060216,87148.0,87147.0,0.10538]
[1764103104255,0.11980216,87148.0,87147.0,0.10538]
[1764103104456,0.01165216,87148.0,87147.0,0.46618]
[1764103105458,0.11980216,87148.0,87147.0,0.46618]
[1764103106062,0.06524216,87148.0,87147.0,0.46618]
[1764103106662,0.11980216,87148.0,87147.0,0.46618]
[1764103110860,0.11980216,87148.0,87142.0,0.10538]
[1764103110861,0.1196307,87143.0,87142.0,0.10538]
[1764103111066,0.10815,87140.0,87139.0,0.3608]
[1764103111269,0.10815,87140.0,87139.0,0.41304]
[1764103111664,0.10815,87140.0,87139.0,0.46618]
[1764103112367,0.10815,87140.0,87139.0,0.3608]
[1764103112767,0.10815,87140.0,87139.0,0.41304]
[1764103112966,0.01165216,87148.0,87139.0,0.41304]
[1764103112967,0.0114805,87145.0,87139.0,0.3608]
[1764103113269,0.13706,87168.0,87167.0,0.10538]
[1764103113468,0.1485374,87168.0,87167.0,0.46618]
[1764103115171,0.0114774,87168.0,87167.0,0.46618]
[1764103115374,0.1196274,87168.0,87167.0,0.46618]
[1764103116073,0.1485374,87168.0,87167.0,0.46618]
[1764103123087,0.14227856,87176.0,87175.0,0.09578]
[1764103123293,0.00017216,87176.0,87175.0,0.45658]
[1764103123483,0.0114752,87185.0,87176.0,0.01467]
[1764103123688,0.0114752,87185.0,87184.0,0.45624]
[1764103124190,0.0084916,87185.0,87184.0,0.45624]
[1764103124686,0.0579116,87185.0,87184.0,0.45624]
[1764103125079,0.1102116,87185.0,87184.0,0.45624]
[1764103125485,0.1102116,87185.0,87184.0,0.47446872]
[1764103126498,0.1102116,87185.0,87184.0,0.47446872]
[1764103128591,0.1102116,87185.0,87184.0,0.37902872]
[1764103128991,0.1131972,87170.0,87169.0,0.19767073]
[1764103129200,0.1131972,87170.0,87169.0,0.09544]
[1764103129390,0.1131972,87170.0,87169.0,0.11398443]
[1764103129692,0.1131972,87170.0,87169.0,0.01854443]
[1764103129892,0.1278,87168.0,87167.0,0.3608]
[1764103130696,0.1278,87168.0,87167.0,0.3788343]
[1764103130896,0.1278,87168.0,87167.0,0.4742743]
[1764103131098,0.1268,87168.0,87167.0,0.4742743]
[1764103131499,0.1268,87168.0,87167.0,0.4275543]
[1764103133502,0.1268,87168.0,87167.0,0.4762743]
[1764103139305,0.1382774,87168.0,87167.0,0.4762743]
[1764103140200,0.1121974,87168.0,87167.0,0.4762743]
[1764103140901,0.1121974,87168.0,87167.0,0.4275543]
[1764103141108,0.1121974,87168.0,87167.0,0.4702243]
[1764103141605,0.1121974,87168.0,87167.0,1e-07]
[1764103141907,0.0950502,87147.0,87146.0,0.18757073]
[1764103142208,0.120738,87164.0,87163.0,0.08534]
[1764103142603,0.095048,87164.0,87163.0,0.08534]
[1764103142906,0.095048,87164.0,87163.0,0.04267]
[1764103143508,0.0950488,87158.0,87157.0,0.18764509]
[1764103145904,0.0970488,87158.0,87157.0,0.04267]
[1764103146112,0.08357,87156.0,87155.0,0.00017206]
[1764103147198,0.08657,87156.0,87155.0,0.00017206]
[1764103147403,0.08657,87156.0,87155.0,0.04284206]
[1764103147605,0.08357,87156.0,87155.0,0.08551206]
[1764103147807,0.08557,87156.0,87155.0,0.08551206]
[1764103148402,0.002,87156.0,87155.0,0.08551206]
[1764103148603,0.08557,87156.0,87155.0,0.08551206]
[1764103149806,0.08457,87156.0,87155.0,0.08551206]
[1764103150404,0.08557,87156.0,87155.0,0.08551206]
[1764103152306,0.08357,87156.0,87155.0,0.08551206]
[1764103152507,0.08457,87156.0,87155.0,0.08551206]
[1764103152909,0.08357,87156.0,87155.0,0.08551206]
[1764103153113,0.08457,87156.0,87155.0,0.08551206]
[1764103153613,0.08557,87156.0,87155.0,0.08551206]
[1764103154216,0.08457,87156.0,87155.0,0.08551206]
[1764103155513,0.08459,87156.0,87155.0,0.18781715]
[1764103156224,0.096069,87156.0,87155.0,0.10247715]
[1764103156421,0.096069,87156.0,87155.0,0.14174715]
[1764103156613,0.097069,87156.0,87155.0,0.18101715]
[1764103157420,0.097069,87156.0,87155.0,0.07871206]
[1764103157816,0.097069,87156.0,87155.0,0.00017206]
[1764103158319,0.097069,87156.0,87155.0,0.10269391]
[1764103158525,0.097069,87156.0,87155.0,0.00017206]
[1764103160818,0.0950702,87147.0,87146.0,0.01841596]
[1764103161025,0.0950702,87147.0,87146.0,0.03927]
[1764103161322,0.0950702,87147.0,87146.0,0.09677946]
[1764103165124,0.0114802,87147.0,87146.0,0.09677946]
[1764103165322,0.01148,87149.0,87148.0,0.0900198]
[1764103165516,0.10928,87164.0,87163.0,0.07854]
[1764103165713,0.120758,87164.0,87163.0,0.07854]
[1764103167127,0.122758,87164.0,87163.0,0.07854]
[1764103167919,0.123758,87164.0,87163.0,0.07854]
[1764103169419,0.123758,87164.0,87163.0,0.03927]
[1764103171028,0.123758,87164.0,87163.0,0.07854]
[1764103185335,0.098068,87164.0,87163.0,0.07854]
[1764103185535,0.056078,87164.0,87163.0,0.07854]
[1764103185734,0.003,87164.0,87163.0,0.07854]
[1764103187932,0.09049,87164.0,87163.0,0.07854]
[1764103191633,0.003,87164.0,87163.0,0.07854]
[1764103191833,0.04729,87164.0,87163.0,0.07854]
[1764103192034,0.003,87164.0,87163.0,0.07854]
[1764103192542,0.04729,87164.0,87163.0,0.07854]
[1764103192836,0.09049,87164.0,87163.0,0.07854]
[1764103194940,0.003,87164.0,87163.0,0.25974]
[1764103195239,0.11233,87192.0,87191.0,0.07294]
[1764103196842,0.11333,87192.0,87191.0,0.07294]
[1764103197239,0.11433,87192.0,87191.0,0.16269196]
[1764103197835,0.11333,87192.0,87191.0,0.16269196]
[1764103198039,0.11433,87192.0,87191.0,0.07294]
[1764103198544,0.11333,87192.0,87191.0,0.07294]
[1764103198939,0.1238035,87198.0,87197.0,0.07294]
[1764103199139,0.1238035,87198.0,87197.0,0.43374]
[1764103200742,0.1248035,87198.0,87197.0,0.43374]
[1764103202254,0.1120843,87192.0,87191.0,0.27158189]
[1764103202451,0.1120843,87192.0,87191.0,0.30077189]
[1764103203140,0.1120843,87192.0,87191.0,0.32996189]
[1764103204546,0.10061,87192.0,87191.0,0.32996189]
[1764103204850,0.1120843,87192.0,87191.0,0.69076189]
[1764103205244,0.1130843,87192.0,87191.0,0.3608]
[1764103205946,0.1120843,87192.0,87191.0,0.3608]
[1764103206545,0.02319,87186.0,87184.0,0.41918]
[1764103206748,0.0888952,87185.0,87184.0,0.3608]
[1764103207852,0.0888952,87185.0,87184.0,0.41918]
[1764103208361,0.0888952,87185.0,87184.0,0.51166492]
[1764103209757,0.0898952,87185.0,87184.0,0.51166492]
[1764103210154,0.0898952,87185.0,87184.0,0.3608]
[1764103212154,0.0898952,87185.0,87183.0,0.00017206]
[1764103212348,0.07913,87184.0,87183.0,0.00017206]
[1764103215053,0.08013,87184.0,87183.0,0.00017206]
[1764103219361,0.07913,87178.0,87177.0,0.1174389]
[1764103219555,0.07913,87175.0,87174.0,0.20551]
[1764103219861,0.07913,87175.0,87174.0,0.22986]
[1764103220359,0.0906065,87175.0,87174.0,0.22986]
[1764103220749,0.0906065,87175.0,87174.0,0.18116]
[1764103220944,0.0906065,87175.0,87174.0,0.22986]
[1764103222557,0.0906065,87175.0,87174.0,0.33207002]
[1764103224158,0.0906065,87175.0,87174.0,0.10221002]
[1764103224356,0.0906065,87175.0,87169.0,0.10221002]
[1764103224357,0.0906072,87170.0,87169.0,0.10221002]
[1764103224755,0.07913,87169.0,87166.0,0.10221002]
[1764103225062,0.07913,87169.0,87168.0,0.02447154]
[1764103225362,0.07913,87169.0,87168.0,0.04882154]
[1764103225564,0.07913,87169.0,87168.0,0.02447154]
[1764103225756,0.07913,87169.0,87168.0,0.00012154]
[1764103225955,0.07913,87164.0,87163.0,2e-08]
[1764103226165,0.0114778,87165.0,87154.0,2e-08]
[1764103226166,0.07913,87155.0,87154.0,2e-08]
[1764103226354,0.0906097,87151.0,87150.0,0.38515]
[1764103226565,0.0906097,87151.0,87150.0,0.4095]
[1764103226861,0.09073124,87151.0,87150.0,0.4095]
[1764103228258,0.05268124,87151.0,87150.0,0.4095]
[1764103228457,0.09073124,87151.0,87150.0,0.50261787]
[1764103229561,0.09173124,87151.0,87150.0,0.50261787]
[1764103232469,0.09073124,87151.0,87150.0,0.50261787]
[1764103232660,0.09173124,87151.0,87150.0,0.50261787]
[1764103237263,0.08025154,87151.0,87150.0,0.51409767]
[1764103237472,0.00112154,87151.0,87150.0,0.51409767]
[1764103237867,0.04220154,87151.0,87150.0,0.51409767]
[1764103238069,0.00112154,87151.0,87150.0,0.51409767]
[1764103238270,0.00112154,87151.0,87150.0,0.52447767]
[1764103239671,0.00012154,87151.0,87150.0,0.52447767]
[1764103240974,0.00017206,87159.0,87158.0,0.0601788]
[1764103241181,0.0114764,87176.0,87175.0,0.04662]
[1764103241574,0.0506164,87176.0,87175.0,0.04662]
[1764103241772,0.0862164,87176.0,87175.0,0.04662]
[1764103243079,0.0872164,87176.0,87175.0,0.04662]